[Event "FRA-ch Universities 2019"]
[Site "Paris"]
[Date "2019.02.02"]
[Round "5"]
[White "Geronimi, Pierre-Francois"]
[Black "Noir, Mathys"]
[Result "1-0"]
[ECO "C00"]
[WhiteElo "2042"]
[BlackElo "1889"]
[Annotator "NA RC"]
[PlyCount "71"]
[EventDate "2019.02.01"]
[EventType "swiss"]
[EventCountry "FRA"]
[SourceTitle "playchess.com"]
[Source "ChessBase"]
[SourceQuality "1"]
[TimeControl "900+5"]

1. e4 {[%emt 0:00:00]} e6 {[%emt 0:00:00]} 2. Nf3 {[%emt 0:00:00]} d5 {[%emt 0:00:04]} 3. e5 {[%emt 0:00:01]} c5 {[%emt 0:00:10]} 4. b4 {[%emt 0:00:01]} cxb4 {[%emt 0:00:10]} 5. a3 {[%emt 0:00:02]} Nc6 {[%emt 0:00:26]} 6. axb4 {[%emt 0:00:01]} Bxb4 {[%emt 0:00:14]} 7. c3 {[%emt 0:00:01]} Be7 {[%emt 0:00:13]} 8. d4 {[%emt 0:00:01]} Qc7 {[%emt 0:00:30]} 9. Bd3 {[%emt 0:00:26]} f6 {[%emt 0:00:48]} 10. Qe2 {[%emt 0:01:38]} Nh6 {[%emt 0:01:55]} 11. Bxh6 {[%emt 0:00:44]} gxh6 {[%emt 0:00:05]} 12. Qe3 {[%emt 0:01:37]} fxe5 {[%emt 0:00:40]} 13. dxe5 {[%emt 0:00:05]} Bg5 {[%emt 0:01:10]} 14. Nxg5 {[%emt 0:00:06]} hxg5 {[%emt 0:00:05]} 15. Bb5 {[%emt 0:00:05]} h6 {[%emt 0:00:48]} 16. Bxc6+ {[%emt 0:00:17]} bxc6 {[%emt 0:00:10]} 17. h4 {[%emt 0:00:45]} g4 {[%emt 0:00:17]} 18. Ra4 {[%emt 0:01:15]} h5 {[%emt 0:00:34]} 19. O-O {[%emt 0:00:15]} Qe7 {[%emt 0:00:22]} 20. g3 {[%emt 0:00:26]} Rf8 {[%emt 0:00:56]} 21. Nd2 {[%emt 0:00:07]} Rf5 {[%emt 0:00:25]} 22. Nb3 {[%emt 0:02:23]} Qg7 {[%emt 0:01:33]} 23. Re1 {[%emt 0:00:22]} Rf3 {[%emt 0:02:26]} 24. Qc5 {[%emt 0:00:08]} Rb8 {[%emt 0:00:14]} 25. Nd4 {[%emt 0:01:44]} Rf7 {[%emt 0:00:50]} 26. Qd6 {[%emt 0:00:10]} Rb6 {[%emt 0:00:33]} 27. Nxe6 {[%emt 0:01:21]} Bxe6 {[%emt 0:00:15]} 28. Qxe6+ Re7 {[%emt 0:00:13]} 29. Qc8+ {[%emt 0:00:07]} Kf7 {[%emt 0:00:03]} 30. Rf4+ {[%emt 0:00:02]} Kg6 {[%emt 0:00:07]} 31. Qf5+ {[%emt 0:00:04]} Kh6 {[%emt 0:00:02]} 32. e6 {[%emt 0:00:36]} Rbb7 {[%emt 0:00:50]} 33. Re5 {[%emt 0:00:16]} Qg6 {[%emt 0:00:21]} 34. Qf8+ {[%emt 0:00:04]} Kh7 {[%emt 0:00:09]} 35. Rg5 {[%emt 0:00:16]} Qe8 {[%emt 0:00:03]} 36. Qf5+ {[%emt 0:00:08]} 1-0

[Event "FRA-ch Universities 2019"]
[Site "Paris"]
[Date "2019.02.02"]
[Round "5"]
[White "Guillemart, Serge"]
[Black "Porsia, Enzo"]
[Result "1-0"]
[ECO "C45"]
[WhiteElo "2023"]
[BlackElo "1752"]
[Annotator "NA RC"]
[PlyCount "67"]
[EventDate "2019.02.01"]
[EventType "swiss"]
[EventCountry "FRA"]
[SourceTitle "playchess.com"]
[Source "ChessBase"]
[SourceQuality "1"]
[TimeControl "900+5"]

1. e4 {[%emt 0:00:00]} e5 {[%emt 0:00:00]} 2. Nf3 {[%emt 0:00:00]} Nc6 {[%emt 0:00:00]} 3. d4 {[%emt 0:00:00]} exd4 {[%emt 0:00:02]} 4. Nxd4 {[%emt 0:00:00]} Bc5 {[%emt 0:00:03]} 5. Be3 {[%emt 0:00:01]} Bb6 {[%emt 0:00:38]} 6. Nf5 {[%emt 0:00:01]} Qf6 {[%emt 0:00:59]} 7. Nc3 {[%emt 0:00:05]} Nge7 {[%emt 0:02:01]} 8. Bxb6 {[%emt 0:00:08]} axb6 9. Ne3 O-O {[%emt 0:00:35]} 10. Be2 {[%emt 0:00:03]} Qg6 {[%emt 0:01:09]} 11. O-O {[%emt 0:00:06]} d6 {[%emt 0:00:38]} 12. f4 {[%emt 0:00:01]} f5 {[%emt 0:01:57]} 13. Bd3 {[%emt 0:00:56]} Bd7 {[%emt 0:02:26]} 14. Rf3 {[%emt 0:00:06]} Qh5 {[%emt 0:00:45]} 15. Be2 {[%emt 0:00:28]} fxe4 {[%emt 0:00:40]} 16. Nxe4 {[%emt 0:00:19]} Qg6 {[%emt 0:00:43]} 17. Ng3 {[%emt 0:00:15]} Kh8 {[%emt 0:00:21]} 18. Bd3 {[%emt 0:00:17]} Qf6 {[%emt 0:00:15]} 19. c3 {[%emt 0:00:26]} d5 {[%emt 0:00:13]} 20. Bc2 {[%emt 0:00:17]} d4 {[%emt 0:00:13]} 21. Qd3 {[%emt 0:00:09]} g6 {[%emt 0:00:15]} 22. Nc4 {[%emt 0:00:16]} dxc3 {[%emt 0:00:17]} 23. bxc3 {[%emt 0:00:02]} Nf5 {[%emt 0:00:27]} 24. Qxd7 {[%emt 0:00:02]} Nh4 {[%emt 0:00:27]} 25. Raf1 {[%emt 0:00:35]} Nxf3+ {[%emt 0:00:07]} 26. Rxf3 {[%emt 0:00:01]} Rxa2 {[%emt 0:00:07]} 27. Ne4 {[%emt 0:00:10]} Qh4 {[%emt 0:00:36]} 28. g3 {[%emt 0:00:13]} Qh5 {[%emt 0:00:14]} 29. Rf2 {[%emt 0:00:22]} Rxc2 {[%emt 0:00:14]} 30. Rxc2 Qf3 {[%emt 0:00:03]} 31. Ng5 {[%emt 0:00:29]} Qh5 {[%emt 0:00:06]} 32. Kg2 {[%emt 0:00:41]} Rd8 {[%emt 0:00:40]} 33. Nf7+ {[%emt 0:00:07]} Kg8 {[%emt 0:00:02]} 34. Nxd8 {[%emt 0:00:04]} 1-0

[Event "FRA-ch Universities 2019"]
[Site "Paris"]
[Date "2019.02.02"]
[Round "5"]
[White "Brunier, Jules"]
[Black "Cahen, Alexis"]
[Result "1-0"]
[ECO "B73"]
[WhiteElo "2015"]
[BlackElo "2109"]
[Annotator "NA RC"]
[PlyCount "79"]
[EventDate "2019.02.01"]
[EventType "swiss"]
[EventCountry "FRA"]
[SourceTitle "playchess.com"]
[Source "ChessBase"]
[SourceQuality "1"]
[TimeControl "900+5"]

1. e4 {[%emt 0:00:01]} c5 {[%emt 0:00:00]} 2. Nf3 {[%emt 0:00:02]} d6 {[%emt 0:00:00]} 3. d4 {[%emt 0:00:02]} cxd4 {[%emt 0:00:02]} 4. Nxd4 {[%emt 0:00:02]} Nf6 {[%emt 0:00:02]} 5. Nc3 {[%emt 0:00:03]} g6 {[%emt 0:00:01]} 6. Be2 {[%emt 0:00:09]} Nc6 {[%emt 0:00:04]} 7. O-O {[%emt 0:00:14]} Bg7 {[%emt 0:00:06]} 8. Be3 {[%emt 0:00:06]} O-O {[%emt 0:00:04]} 9. Kh1 {[%emt 0:00:29]} Bd7 {[%emt 0:00:38]} 10. f4 {[%emt 0:00:10]} Rc8 {[%emt 0:00:11]} 11. Bf3 {[%emt 0:00:21]} Na5 {[%emt 0:01:08]} 12. Be2 {[%emt 0:03:39]} Nc4 {[%emt 0:00:17]} 13. Bxc4 {[%emt 0:00:06]} Rxc4 {[%emt 0:00:06]} 14. Qd3 {[%emt 0:00:29]} Ng4 {[%emt 0:01:11]} 15. Bg1 {[%emt 0:00:16]} Rc8 {[%emt 0:00:59]} 16. h3 {[%emt 0:00:36]} Nf6 {[%emt 0:00:08]} 17. e5 {[%emt 0:00:24]} dxe5 {[%emt 0:00:57]} 18. fxe5 {[%emt 0:00:02]} Ne8 {[%emt 0:01:45]} 19. Rae1 {[%emt 0:00:19]} Nc7 {[%emt 0:00:08]} 20. Qe4 {[%emt 0:01:01]} Ne6 {[%emt 0:00:34]} 21. Qxb7 {[%emt 0:03:15]} Rb8 {[%emt 0:01:06]} 22. Qxa7 {[%emt 0:00:09]} Rxb2 {[%emt 0:00:20]} 23. Rd1 {[%emt 0:00:17]} Qe8 {[%emt 0:02:03]} 24. Qa3 {[%emt 0:01:55]} Rb7 {[%emt 0:01:08]} 25. Rfe1 {[%emt 0:00:11]} Nxd4 {[%emt 0:00:40]} 26. Bxd4 {[%emt 0:00:08]} Be6 {[%emt 0:00:06]} 27. Bc5 {[%emt 0:00:25]} Qc6 {[%emt 0:00:08]} 28. Bxe7 {[%emt 0:00:56]} Bxh3 {[%emt 0:00:02]} 29. Ne4 {[%emt 0:00:01]} Re8 {[%emt 0:00:53]} 30. Bf6 {[%emt 0:00:29]} Bf5 {[%emt 0:00:48]} 31. Nd6 {[%emt 0:00:09]} Bxf6 {[%emt 0:00:15]} 32. exf6 {[%emt 0:00:23]} Rxe1+ {[%emt 0:00:36]} 33. Rxe1 {[%emt 0:00:01]} Rb8 {[%emt 0:00:16]} 34. Nxf7 {[%emt 0:00:42]} Re8 {[%emt 0:00:35]} 35. Nh6+ {[%emt 0:00:12]} Kh8 {[%emt 0:00:01]} 36. Rxe8+ {[%emt 0:00:07]} Qxe8 {[%emt 0:00:01]} 37. Qe7 {[%emt 0:00:01]} Qxe7 {[%emt 0:00:06]} 38. fxe7 {[%emt 0:00:02]} Bd7 {[%emt 0:00:00]} 39. Nf7+ {[%emt 0:00:06]} Kg7 {[%emt 0:00:05]} 40. Nd6 {[%emt 0:00:01]} 1-0

[Event "FRA-ch Universities 2019"]
[Site "Paris"]
[Date "2019.02.02"]
[Round "6"]
[White "Sochacki, Wojtek"]
[Black "Guillemart, Serge"]
[Result "1-0"]
[ECO "B30"]
[WhiteElo "2348"]
[BlackElo "2023"]
[Annotator "NA RC"]
[PlyCount "45"]
[EventDate "2019.02.01"]
[EventType "swiss"]
[EventCountry "FRA"]
[SourceTitle "playchess.com"]
[Source "ChessBase"]
[SourceQuality "1"]
[TimeControl "900+5"]

1. e4 {[%emt 0:00:20]} c5 {[%emt 0:00:06]} 2. Nf3 {[%emt 0:00:02]} Nc6 {[%emt 0:00:02]} 3. b4 {[%emt 0:00:18]} cxb4 {[%emt 0:00:10]} 4. d4 {[%emt 0:00:02]} d5 {[%emt 0:00:04]} 5. exd5 {[%emt 0:00:01]} Qxd5 {[%emt 0:00:02]} 6. c4 {[%emt 0:00:02]} Qh5 {[%emt 0:00:28]} 7. Be2 {[%emt 0:01:47]} Bg4 {[%emt 0:00:45]} 8. Nbd2 {[%emt 0:00:55]} e5 {[%emt 0:00:53]} 9. d5 {[%emt 0:00:08]} Nd8 {[%emt 0:00:41]} 10. O-O {[%emt 0:00:37]} Nf6 {[%emt 0:00:09]} 11. h3 {[%emt 0:00:26]} Bxf3 {[%emt 0:00:06]} 12. Bxf3 {[%emt 0:00:22]} Qf5 {[%emt 0:00:01]} 13. Re1 {[%emt 0:01:06]} Be7 {[%emt 0:00:07]} 14. Bb2 {[%emt 0:00:17]} O-O {[%emt 0:00:36]} 15. Bxe5 {[%emt 0:00:47]} Qd7 {[%emt 0:00:43]} 16. d6 {[%emt 0:00:13]} Bxd6 {[%emt 0:00:25]} 17. Bxf6 {[%emt 0:00:01]} Qc7 {[%emt 0:00:33]} 18. Bb2 {[%emt 0:00:18]} Ne6 {[%emt 0:00:04]} 19. Bd5 {[%emt 0:00:07]} Nc5 {[%emt 0:00:18]} 20. Ne4 {[%emt 0:00:07]} Nxe4 {[%emt 0:00:19]} 21. Rxe4 {[%emt 0:00:01]} Rfe8 {[%emt 0:00:09]} 22. Qd4 {[%emt 0:00:04]} Bf8 {[%emt 0:00:06]} 23. Rg4 {[%emt 0:00:12]} 1-0

[Event "FRA-ch Universities 2019"]
[Site "Paris"]
[Date "2019.02.02"]
[Round "6"]
[White "Devallee, Jeremie"]
[Black "Cahen, Alexis"]
[Result "1-0"]
[ECO "B21"]
[WhiteElo "2317"]
[BlackElo "2109"]
[Annotator "NA RC"]
[PlyCount "47"]
[EventDate "2019.02.01"]
[EventType "swiss"]
[EventCountry "FRA"]
[SourceTitle "playchess.com"]
[Source "ChessBase"]
[SourceQuality "1"]
[TimeControl "900+5"]

1. e4 {[%emt 0:00:00]} c5 {[%emt 0:00:00]} 2. d4 {[%emt 0:00:00]} cxd4 {[%emt 0:00:00]} 3. c3 {[%emt 0:00:00]} d3 {[%emt 0:00:01]} 4. Bxd3 {[%emt 0:00:02]} Nc6 {[%emt 0:00:05]} 5. c4 {[%emt 0:00:02]} Nf6 {[%emt 0:00:39]} 6. Nf3 {[%emt 0:00:03]} d6 {[%emt 0:00:03]} 7. h3 {[%emt 0:00:02]} g6 {[%emt 0:00:09]} 8. Nc3 {[%emt 0:00:02]} Bg7 {[%emt 0:00:01]} 9. Be3 {[%emt 0:00:01]} O-O {[%emt 0:00:08]} 10. Rc1 {[%emt 0:00:01]} Be6 {[%emt 0:00:18]} 11. O-O {[%emt 0:00:04]} Qa5 {[%emt 0:00:35]} 12. b3 {[%emt 0:01:08]} Nd7 {[%emt 0:01:31]} 13. Qd2 {[%emt 0:00:16]} Qh5 {[%emt 0:00:21]} 14. Nd5 {[%emt 0:00:28]} Bxd5 {[%emt 0:01:05]} 15. exd5 {[%emt 0:00:03]} Nce5 {[%emt 0:00:08]} 16. Be2 {[%emt 0:00:02]} Qf5 {[%emt 0:03:17]} 17. Nd4 {[%emt 0:01:15]} Qe4 {[%emt 0:00:34]} 18. f3 {[%emt 0:00:54]} Qh4 {[%emt 0:00:16]} 19. f4 {[%emt 0:00:02]} Nc5 {[%emt 0:00:49]} 20. fxe5 {[%emt 0:00:08]} Bxe5 {[%emt 0:00:04]} 21. Nf3 {[%emt 0:00:03]} Qg3 {[%emt 0:00:29]} 22. Nxe5 {[%emt 0:00:04]} Qxe5 {[%emt 0:00:03]} 23. Bd4 {[%emt 0:00:11]} Ne4 {[%emt 0:00:07]} 24. Qe3 {[%emt 0:00:16]} 1-0

[Event "FRA-ch Universities 2019"]
[Site "Paris"]
[Date "2019.02.02"]
[Round "6"]
[White "Dobrocmyslov, Artem"]
[Black "Eden, James"]
[Result "0-1"]
[ECO "D16"]
[WhiteElo "2262"]
[BlackElo "2338"]
[Annotator "NA RC"]
[PlyCount "162"]
[EventDate "2019.02.01"]
[EventType "swiss"]
[EventCountry "FRA"]
[SourceTitle "playchess.com"]
[Source "ChessBase"]
[SourceQuality "1"]
[TimeControl "900+5"]

1. d4 {[%emt 0:00:00]} d5 {[%emt 0:00:00]} 2. Nf3 {[%emt 0:00:00]} Nf6 {[%emt 0:00:01]} 3. c4 {[%emt 0:00:02]} c6 {[%emt 0:00:02]} 4. Nc3 {[%emt 0:00:03]} dxc4 {[%emt 0:00:03]} 5. a4 {[%emt 0:00:03]} Bg4 {[%emt 0:00:11]} 6. Ne5 {[%emt 0:00:49]} Bh5 {[%emt 0:00:03]} 7. f3 {[%emt 0:01:08]} e6 {[%emt 0:00:02]} 8. g4 {[%emt 0:02:38]} Nfd7 {[%emt 0:00:02]} 9. Bf4 {[%emt 0:00:41]} Nxe5 {[%emt 0:01:23]} 10. dxe5 {[%emt 0:02:42]} Bg6 {[%emt 0:00:11]} 11. Qxd8+ {[%emt 0:00:49]} Kxd8 {[%emt 0:00:02]} 12. e3 {[%emt 0:00:43]} Na6 {[%emt 0:00:38]} 13. Bxc4 {[%emt 0:00:36]} Nb4 {[%emt 0:00:02]} 14. Ke2 {[%emt 0:01:00]} Be7 {[%emt 0:01:15]} 15. Rac1 {[%emt 0:01:10]} Kc7 {[%emt 0:00:33]} 16. e4 {[%emt 0:00:48]} Rad8 {[%emt 0:00:31]} 17. h4 {[%emt 0:00:50]} h5 {[%emt 0:00:13]} 18. g5 {[%emt 0:00:02]} Kb8 {[%emt 0:00:10]} 19. Be3 {[%emt 0:00:33]} Rd7 {[%emt 0:00:18]} 20. Na2 {[%emt 0:00:24]} Rhd8 {[%emt 0:01:17]} 21. Nxb4 {[%emt 0:00:23]} Bxb4 {[%emt 0:00:02]} 22. Rhd1 {[%emt 0:00:03]} a5 {[%emt 0:00:07]} 23. Bb6 {[%emt 0:00:09]} Rxd1 {[%emt 0:00:03]} 24. Rxd1 {[%emt 0:00:01]} Rxd1 {[%emt 0:00:02]} 25. Kxd1 {[%emt 0:00:02]} Kc8 {[%emt 0:00:05]} 26. Bd3 {[%emt 0:00:24]} Kd7 {[%emt 0:03:01]} 27. f4 {[%emt 0:00:02]} Ke7 {[%emt 0:00:30]} 28. f5 {[%emt 0:00:02]} Bh7 {[%emt 0:00:03]} 29. Ke2 {[%emt 0:00:18]} Bg8 {[%emt 0:01:47]} 30. Bd4 {[%emt 0:00:02]} c5 {[%emt 0:00:42]} 31. Bc3 {[%emt 0:00:11]} Bxc3 {[%emt 0:00:01]} 32. f6+ {[%emt 0:00:25]} gxf6 {[%emt 0:00:10]} 33. exf6+ {[%emt 0:00:07]} Bxf6 {[%emt 0:00:02]} 34. gxf6+ {[%emt 0:00:06]} Kxf6 {[%emt 0:00:02]} 35. Ke3 {[%emt 0:00:16]} Ke5 {[%emt 0:00:09]} 36. Be2 {[%emt 0:00:07]} Bh7 {[%emt 0:01:00]} 37. Bxh5 {[%emt 0:00:02]} Bxe4 {[%emt 0:00:09]} 38. Bxf7 {[%emt 0:00:03]} Bc6 {[%emt 0:00:02]} 39. h5 {[%emt 0:00:23]} Kf6 {[%emt 0:00:28]} 40. Bg8 {[%emt 0:00:03]} Bxa4 {[%emt 0:00:36]} 41. h6 {[%emt 0:00:02]} Bc2 {[%emt 0:00:21]} 42. h7 {[%emt 0:00:11]} Kg7 {[%emt 0:00:02]} 43. Bxe6 {[%emt 0:00:05]} Bxh7 {[%emt 0:00:11]} 44. Bc8 {[%emt 0:00:06]} b6 {[%emt 0:00:02]} 45. Kd2 {[%emt 0:00:03]} Kf6 {[%emt 0:00:03]} 46. Kc3 {[%emt 0:00:02]} Bg8 {[%emt 0:00:03]} 47. Bd7 {[%emt 0:00:08]} Ke7 {[%emt 0:00:04]} 48. Ba4 {[%emt 0:00:04]} Kd6 {[%emt 0:00:03]} 49. Be8 {[%emt 0:00:02]} Kc7 {[%emt 0:00:10]} 50. Ba4 {[%emt 0:00:05]} Kd6 {[%emt 0:00:04]} 51. Be8 {[%emt 0:00:05]} Bd5 {[%emt 0:00:03]} 52. Bb5 {[%emt 0:00:09]} Bc6 {[%emt 0:00:04]} 53. Be2 {[%emt 0:00:02]} b5 {[%emt 0:00:04]} 54. Kb3 {[%emt 0:00:08]} a4+ {[%emt 0:00:15]} 55. Ka3 {[%emt 0:00:06]} b4+ {[%emt 0:00:03]} 56. Ka2 {[%emt 0:00:01]} Bd5+ {[%emt 0:00:04]} 57. Kb1 {[%emt 0:00:08]} Bb3 {[%emt 0:00:02]} 58. Bb5 {[%emt 0:00:05]} Ke5 {[%emt 0:00:04]} 59. Kc1 {[%emt 0:00:06]} Kd4 {[%emt 0:00:04]} 60. Kb1 {[%emt 0:00:03]} Ke3 {[%emt 0:00:14]} 61. Kc1 {[%emt 0:00:03]} Ke4 {[%emt 0:00:24]} 62. Be8 {[%emt 0:00:05]} Ke5 {[%emt 0:00:19]} 63. Kb1 {[%emt 0:00:07]} Kd6 {[%emt 0:00:03]} 64. Kc1 {[%emt 0:00:04]} Kc7 {[%emt 0:00:03]} 65. Kb1 {[%emt 0:00:02]} Kb6 {[%emt 0:00:01]} 66. Kc1 {[%emt 0:00:03]} Ka5 {[%emt 0:00:02]} 67. Kb1 {[%emt 0:00:02]} Bc4 {[%emt 0:00:03]} 68. Bd7 {[%emt 0:00:05]} Bb5 {[%emt 0:00:02]} 69. Be6 {[%emt 0:00:02]} b3 {[%emt 0:00:07]} 70. Ka1 {[%emt 0:00:06]} Kb4 {[%emt 0:00:02]} 71. Bg8 {[%emt 0:00:17]} a3 {[%emt 0:00:04]} 72. Bf7 {[%emt 0:00:06]} axb2+ {[%emt 0:00:03]} 73. Kxb2 {[%emt 0:00:02]} c4 {[%emt 0:00:02]} 74. Bg6 {[%emt 0:00:08]} c3+ {[%emt 0:00:03]} 75. Kb1 {[%emt 0:00:04]} Ka3 {[%emt 0:00:02]} 76. Ka1 {[%emt 0:00:06]} Bc4 {[%emt 0:00:04]} 77. Kb1 {[%emt 0:00:04]} c2+ {[%emt 0:00:38]} 78. Bxc2 {[%emt 0:00:02]} b2 {[%emt 0:00:01]} 79. Bb3 {[%emt 0:00:08]} Bd3+ {[%emt 0:00:02]} 80. Bc2 {[%emt 0:00:03]} Bxc2+ {[%emt 0:00:01]} 81. Kxc2 {[%emt 0:00:01]} Ka2 {[%emt 0:00:02]} 0-1

[Event "FRA-ch Universities 2019"]
[Site "Paris"]
[Date "2019.02.02"]
[Round "6"]
[White "Geronimi, Pierre-Francois"]
[Black "Bellaiche, Elise"]
[Result "1-0"]
[ECO "C00"]
[WhiteElo "2042"]
[BlackElo "2056"]
[Annotator "NA"]
[PlyCount "39"]
[EventDate "2019.02.01"]
[EventType "swiss"]
[EventCountry "FRA"]
[SourceTitle "playchess.com"]
[Source "ChessBase"]
[SourceQuality "1"]
[TimeControl "900+5"]

1. e4 {[%emt 0:00:00]} e6 {[%emt 0:00:02]} 2. Nf3 {[%emt 0:00:00]} d5 {[%emt 0:00:02]} 3. e5 {[%emt 0:00:00]} c5 {[%emt 0:00:34]} 4. b4 {[%emt 0:00:01]} cxb4 {[%emt 0:00:20]} 5. a3 {[%emt 0:00:03]} Nc6 {[%emt 0:00:22]} 6. axb4 {[%emt 0:00:02]} Bxb4 {[%emt 0:00:23]} 7. c3 {[%emt 0:00:01]} Be7 {[%emt 0:02:37]} 8. d4 {[%emt 0:00:02]} Qc7 {[%emt 0:02:32]} 9. Bd3 {[%emt 0:00:03]} f6 {[%emt 0:00:27]} 10. Qe2 {[%emt 0:00:02]} Bd7 {[%emt 0:01:05]} 11. O-O {[%emt 0:00:15]} O-O-O {[%emt 0:01:02]} 12. Ba3 {[%emt 0:01:23]} f5 {[%emt 0:02:18]} 13. Bxe7 {[%emt 0:00:30]} Ngxe7 {[%emt 0:00:01]} 14. Na3 {[%emt 0:00:03]} Na5 {[%emt 0:01:18]} 15. Rfb1 {[%emt 0:03:41]} Rdg8 {[%emt 0:00:33]} 16. Ng5 {[%emt 0:00:10]} Rf8 {[%emt 0:01:01]} 17. Nb5 {[%emt 0:01:05]} Bxb5 {[%emt 0:00:12]} 18. Rxb5 {[%emt 0:00:02]} Nac6 {[%emt 0:00:48]} 19. Nxe6 {[%emt 0:00:04]} Qd7 {[%emt 0:00:11]} 20. Nc5 {[%emt 0:00:02]} 1-0

[Event "FRA-ch Universities 2019"]
[Site "Paris"]
[Date "2019.02.02"]
[Round "6"]
[White "Brunier, Jules"]
[Black "Loiseau, Quentin"]
[Result "0-1"]
[ECO "B34"]
[WhiteElo "2015"]
[BlackElo "2452"]
[Annotator "RC"]
[PlyCount "90"]
[EventDate "2019.02.01"]
[EventType "swiss"]
[EventCountry "FRA"]
[SourceTitle "playchess.com"]
[Source "ChessBase"]
[SourceQuality "1"]
[TimeControl "900+5"]

1. e4 {[%emt 0:00:00]} c5 {[%emt 0:00:00]} 2. Nf3 {[%emt 0:00:07]} Nc6 {[%emt 0:00:01]} 3. d4 {[%emt 0:00:05]} cxd4 {[%emt 0:00:02]} 4. Nxd4 {[%emt 0:00:03]} Nf6 {[%emt 0:00:02]} 5. Nc3 {[%emt 0:00:27]} e5 {[%emt 0:00:02]} 6. Ndb5 {[%emt 0:00:14]} d6 {[%emt 0:00:05]} 7. Nd5 {[%emt 0:02:48]} Nxd5 {[%emt 0:00:02]} 8. exd5 {[%emt 0:00:02]} Nb8 {[%emt 0:00:01]} 9. c4 {[%emt 0:00:28]} Be7 {[%emt 0:00:03]} 10. Be2 {[%emt 0:00:06]} O-O {[%emt 0:00:05]} 11. O-O {[%emt 0:00:03]} a6 {[%emt 0:00:26]} 12. Nc3 {[%emt 0:00:03]} f5 {[%emt 0:00:02]} 13. Re1 {[%emt 0:00:22]} Nd7 {[%emt 0:00:04]} 14. Bf1 {[%emt 0:00:09]} e4 {[%emt 0:00:14]} 15. Ne2 {[%emt 0:00:30]} Ne5 {[%emt 0:00:05]} 16. Nd4 {[%emt 0:00:03]} Qe8 {[%emt 0:00:26]} 17. Bf4 {[%emt 0:01:16]} Bf6 {[%emt 0:00:15]} 18. Rc1 {[%emt 0:00:14]} g5 {[%emt 0:00:44]} 19. Bd2 {[%emt 0:00:23]} Ng4 {[%emt 0:00:59]} 20. h3 {[%emt 0:00:53]} Nxf2 {[%emt 0:00:09]} 21. Kxf2 {[%emt 0:00:10]} Bxd4+ {[%emt 0:00:02]} 22. Be3 {[%emt 0:00:09]} Bxe3+ {[%emt 0:00:26]} 23. Rxe3 {[%emt 0:00:24]} Qe5 {[%emt 0:00:02]} 24. Qc2 {[%emt 0:01:56]} Bd7 {[%emt 0:00:37]} 25. b4 {[%emt 0:02:42]} Rac8 {[%emt 0:01:58]} 26. Qc3 {[%emt 0:00:49]} f4 {[%emt 0:00:27]} 27. Ree1 {[%emt 0:00:20]} Qf5 {[%emt 0:00:59]} 28. Qd4 {[%emt 0:00:19]} Rce8 {[%emt 0:00:37]} 29. Kg1 {[%emt 0:00:37]} f3 {[%emt 0:01:18]} 30. Qf2 {[%emt 0:01:27]} g4 {[%emt 0:01:23]} 31. g3 {[%emt 0:00:09]} gxh3 {[%emt 0:00:54]} 32. Kh2 {[%emt 0:00:00]} Rf7 {[%emt 0:00:19]} 33. c5 {[%emt 0:00:02]} Rg7 {[%emt 0:01:08]} 34. c6 {[%emt 0:00:07]} Bc8 {[%emt 0:00:01]} 35. Bd3 {[%emt 0:00:08]} Kh8 {[%emt 0:00:41]} 36. Rc4 {[%emt 0:00:02]} Rge7 {[%emt 0:00:37]} 37. Qb2+ {[%emt 0:00:02]} Kg8 {[%emt 0:00:10]} 38. cxb7 {[%emt 0:00:02]} Bxb7 {[%emt 0:00:07]} 39. Bc2 {[%emt 0:00:17]} Bxd5 {[%emt 0:00:06]} 40. Rd4 {[%emt 0:00:11]} Bf7 {[%emt 0:00:05]} 41. Rxd6 {[%emt 0:00:03]} f2 {[%emt 0:00:21]} 42. Rf6 {[%emt 0:00:11]} fxe1=Q {[%emt 0:00:14]} 43. Rxf5 {[%emt 0:00:06]} Qe2+ {[%emt 0:00:36]} 44. Kxh3 {[%emt 0:00:00]} Be6 {[%emt 0:00:08]} 45. Qf6 {[%emt 0:00:10]} Qh5+ {[%emt 0:00:03]} 0-1

[Event "FRA-ch Universities 2019"]
[Site "Paris"]
[Date "2019.02.02"]
[Round "6"]
[White "Thiercelin, Jerome"]
[Black "Daeschler, Florian"]
[Result "0-1"]
[ECO "D35"]
[WhiteElo "2009"]
[BlackElo "2276"]
[Annotator "RC"]
[PlyCount "110"]
[EventDate "2019.02.01"]
[EventType "swiss"]
[EventCountry "FRA"]
[SourceTitle "playchess.com"]
[Source "ChessBase"]
[SourceQuality "1"]
[TimeControl "900+5"]

1. d4 {[%emt 0:00:00]} d5 {[%emt 0:00:00]} 2. c4 {[%emt 0:00:00]} e6 {[%emt 0:00:00]} 3. Nc3 {[%emt 0:00:01]} Nf6 {[%emt 0:00:00]} 4. cxd5 {[%emt 0:00:01]} exd5 {[%emt 0:00:00]} 5. Bg5 {[%emt 0:00:01]} c6 {[%emt 0:00:00]} 6. e3 {[%emt 0:00:03]} Be7 {[%emt 0:00:01]} 7. Bd3 {[%emt 0:00:02]} Nbd7 {[%emt 0:00:01]} 8. Qc2 {[%emt 0:00:04]} h6 {[%emt 0:00:00]} 9. Bh4 {[%emt 0:00:03]} Nh5 {[%emt 0:00:02]} 10. Bxe7 {[%emt 0:00:05]} Qxe7 {[%emt 0:00:01]} 11. Nge2 {[%emt 0:00:24]} Nb6 {[%emt 0:00:02]} 12. a3 {[%emt 0:00:53]} a5 {[%emt 0:00:03]} 13. Na4 {[%emt 0:00:08]} Nxa4 {[%emt 0:00:09]} 14. Qxa4 {[%emt 0:00:02]} O-O {[%emt 0:00:06]} 15. Ng3 {[%emt 0:00:36]} Nf6 {[%emt 0:00:24]} 16. Qc2 {[%emt 0:00:22]} a4 {[%emt 0:00:06]} 17. Rc1 {[%emt 0:00:11]} Re8 {[%emt 0:00:42]} 18. Qc5 {[%emt 0:00:15]} Qd8 {[%emt 0:00:16]} 19. O-O {[%emt 0:02:16]} Be6 {[%emt 0:00:09]} 20. Ne2 {[%emt 0:00:24]} Nd7 {[%emt 0:00:07]} 21. Qc2 {[%emt 0:00:23]} Nf6 {[%emt 0:01:01]} 22. Nc3 {[%emt 0:00:49]} b5 {[%emt 0:00:47]} 23. Ne2 {[%emt 0:00:17]} Bd7 {[%emt 0:00:03]} 24. Ng3 {[%emt 0:01:35]} Rc8 {[%emt 0:00:25]} 25. Qb1 {[%emt 0:02:49]} Qe7 {[%emt 0:01:05]} 26. Bf5 {[%emt 0:01:27]} g6 {[%emt 0:00:04]} 27. Bxd7 {[%emt 0:00:13]} Nxd7 {[%emt 0:00:11]} 28. Qd3 {[%emt 0:00:29]} Nb6 {[%emt 0:00:21]} 29. Rc2 {[%emt 0:00:33]} Nc4 {[%emt 0:00:06]} 30. Rfc1 {[%emt 0:00:21]} Kg7 {[%emt 0:00:34]} 31. Nf1 {[%emt 0:00:45]} Qg5 {[%emt 0:00:45]} 32. Nd2 {[%emt 0:00:28]} Rb8 {[%emt 0:00:47]} 33. Nf3 {[%emt 0:00:54]} Qf6 {[%emt 0:00:02]} 34. Qc3 {[%emt 0:00:16]} Qf5 {[%emt 0:00:48]} 35. Ne5 {[%emt 0:00:14]} Nxe5 {[%emt 0:03:25]} 36. dxe5 {[%emt 0:00:03]} Qxe5 {[%emt 0:00:01]} 37. Qxe5+ {[%emt 0:00:01]} Rxe5 {[%emt 0:00:00]} 38. Rxc6 {[%emt 0:00:02]} b4 {[%emt 0:00:01]} 39. axb4 {[%emt 0:00:34]} Rxb4 {[%emt 0:00:01]} 40. R6c2 {[%emt 0:00:03]} Ree4 {[%emt 0:00:31]} 41. g3 {[%emt 0:00:05]} Rec4 {[%emt 0:00:12]} 42. Rxc4 {[%emt 0:00:03]} Rxc4 {[%emt 0:01:04]} 43. Rd1 {[%emt 0:00:09]} Rb4 {[%emt 0:00:37]} 44. Rd4 {[%emt 0:00:07]} Rxd4 {[%emt 0:01:21]} 45. exd4 {[%emt 0:00:01]} Kf6 {[%emt 0:00:01]} 46. f3 {[%emt 0:00:02]} Ke6 {[%emt 0:00:01]} 47. Kf2 {[%emt 0:00:01]} Kd6 {[%emt 0:00:01]} 48. Ke3 {[%emt 0:00:02]} Kc6 {[%emt 0:00:00]} 49. Kd3 {[%emt 0:00:01]} Kb6 {[%emt 0:00:10]} 50. Kd2 {[%emt 0:00:15]} Ka5 {[%emt 0:00:01]} 51. Kc3 {[%emt 0:00:12]} Kb5 {[%emt 0:00:50]} 52. h3 {[%emt 0:00:06]} f6 {[%emt 0:00:53]} 53. g4 {[%emt 0:00:08]} g5 {[%emt 0:00:02]} 54. b4 {[%emt 0:00:05]} a3 {[%emt 0:00:08]} 55. Kb3 {[%emt 0:00:01]} a2 {[%emt 0:00:01]} 0-1